{"text_format":"1","workbook":"xlsx","n_sheets":1,"sheets":["conceptos"],"not_rendered":{"charts":0,"images":2,"macros":1,"external_links":0,"defined_names":1,"comments":0,"pivot_tables":0},"unopened":[],"bounds":{"document_bytes":16777216,"sheet_cells":100000,"rows_first":2000,"rows_last":500,"rows_between":2000,"halvings":0,"cell_chars":16384,"cell_head_chars":4096},"cells_cut":0,"cells_raw":0,"read":"whole","date_system":"1900"}

{"sheet":"conceptos","index":0,"n_rows":64,"n_cols":8,"rows_kept":64,"cut":false,"hidden":false,"merged":[[61,0,61,4],[62,0,63,4],[13,0,13,6],[0,2,0,5],[9,2,9,5],[1,2,3,5],[4,2,4,3],[6,2,6,3],[7,2,7,3],[4,4,4,5],[5,4,5,5],[6,4,6,5],[7,4,7,5],[10,2,10,5],[11,2,11,5],[5,1,8,1]]}
[null,"GOBIERNO DEL ESTADO DE JALISCO","LICITACIÓN PÚBLICA ESTATAL"]
[null,"INSTITUTO DE LA INFRAESTRUCTURA FÍSICA EDUCATIVA DEL","E-REM-M-CON-05778-LP-0098-2020"]
[null,"ESTADO DE JALISCO"]
[]
[null,"DESCRIPCIÓN GENERAL DE LOS TRABAJOS:","FECHA DE INICIO:"]
[null,null,null,"FECHA DE TERMINACIÓN:"]
[null,null,"PLAZO DE EJECUCIÓN:"]
[null,null,"FECHA:"]
[]
[null,"RAZÓN SOCIAL DEL LICITANTE:","NOMBRE, CARGO Y FIRMA DEL LICITANTE:",null,null,null,"DOCUMENTO"]
[]
[]
[]
["PRESUPUESTO DE OBRA"]
[]
["CLAVE","DESCRIPCIÓN","UNIDAD","CANTIDAD","PRECIO UNITARIO ($)","PRECIO UNITARIO ($) CON LETRA","IMPORTE ($) M.N."]
["TRABAJO : MSUP-CON-05778","CONTINUACIÓN DE LA CONSTRUCCIÓN DE AUDITORIO (ACABADOS, CRISTALES E INSTALACIONES ELÉCTRICAS) EN LA ESCUELA PREPARATORIA NO. 17 CCT 14UBH0192M, UBICADA EN LA LOCALIDAD LAS PINTAS, MUNICIPIO DE EL SALTO, JALISCO. (TERCERA ETAPA).",null,null,null,null,{"$f":"TEXT(SUM(G18 + G46), \"$ #,##0.00 ;\")","v":"$ 0.00 "}]
["AUD","AUDITORIO",null,null,null,null,{"$f":"TEXT(SUM(G19 + G24 + G28 + G31 + G34 + G37 + G39), \"$ #,##0.00 ;\")","v":"$ 0.00 "}]
["AUD.01(150)","TRABAJOS PRELIMINARES                             ",null,null,null,null,{"$f":"TEXT(SUM(G20:G23), \"$ #,##0.00 ;\")","v":"$ 0.00 "}]
[150120,"TRAZO Y NIVELACION DE EXTERIORES ESTABLECIENDO REFERENCIAS DEFINITIVAS, CON TRANSITO Y NIVEL (EQUIPO TOPOGRAFICO), INCLUYE: PERSONAL TECNICO CALIFICADO, ESTACAS, MOJONERAS, LOCALIZACION DE EJES Y/O ENTRE EJES, BANCOS DE NIVEL, MATERIALES PARA SEÑALAMIENTO, EQUIPO, HERRAMIENTA Y MANO DE OBRA.","M2 ","199.0000",0,"CERO PESOS 00/100 M.N.",0,272532]
[150210,"DESPALME DE TERRENO NATURAL POR CUALQUIER MEDIO, CON ESPESOR PROMEDIO DE 20 CM. INCLUYE: CARGA Y ACARREO DEL PRODUCTO FUERA DE LA OBRA, MANO DE OBRA, HERRAMIENTA Y EQUIPO. (PROYECCION DE CUBIERTA).","M2 ","199.0000",0,"CERO PESOS 00/100 M.N.",0,272533]
[152102,"EXCAVACION A CIELO ABIERTO POR CUALQUIER MEDIO, MATERIAL TIPO \"A\", DE 0 A 2.00 M. DE PROFUNDIDAD, EN SECO, INCLUYE: TRASPALEO, CARGA Y ACARREOS DEL MATERIAL EXCEDENTE FUERA DE LA OBRA AL LUGAR INDICADO POR LA SUPERVISION, MEDIDO EN BANCO.","M3 ","47.5000",0,"CERO PESOS 00/100 M.N.",0,272534]
[180425,"RELLENO EN CEPAS Y/O CAJON CON MATERIAL PRODUCTO DE LA EXCAVACION AGREGANDO CALHIDRA EN PROPORCION 50 KG, POR M3 YA COMPACTADO, COMPACTADO AL 95% PROCTOR, INCLUYE: ESCARIFICADO DEL TERRENO, HUMEDAD OPTIMA, MEZCLADO, TENDIDO, COMPACTACION POR CUALQUIER MEDIO EN CAPAS DE 15 CMS., NIVELADO, PRUEBAS DE COMPACTACION, TRASPALEOS, HERRAMIENTAS, MANO DE OBRA Y LOS ACARREOS NECESARIOS. MEDIDO COMPACTO.","M3 ","30.0000",0,"CERO PESOS 00/100 M.N.",0,272535]
["AUD.02(160)","CIMENTACION                                       ",null,null,null,null,{"$f":"TEXT(SUM(G25:G27), \"$ #,##0.00 ;\")","v":"$ 0.00 "}]
[180102,"RELLENO COMPACTADO AL 90 % PROCTOR, CON MATERIAL DE BANCO, EN CAPAS DE 20 CM DE ESPESOR, AGREGANDO AGUA PARA LOGRAR SU HUMEDAD OPTIMA, AL 90%. POR CUALQUIER MEDIO, INCLUYE: SUMINISTRO DE AGUA PARA LOGRAR HUMEDAD OPTIMA, TENDIDO, TRASPALEOS,  DESPERDICIOS, EQUIPO, PRUEBAS DE COMPACTACION, AFINE, NIVELACION, HERRAMIENTAS, MANO DE OBRA Y  ACARREO HASTA EL SITIO DE SU COLOCACION.  (VOLUMEN MEDIDO COMPACTADO).","M3 ","165.9500",0,"CERO PESOS 00/100 M.N.",0,272536]
[952047,"SUMINISTRO Y COLOCACION DE MURO DE PIEDRA BRAZA ASENTADA CON MORTERO EN PROPORCION 1:5 CEM-ARENA DE RIO,INCLUYE: MATERIAL, ACOMODO DE PIEDRA POR PIEDRA SIN CARA, ACARREOS DENTRO Y FUERA DE LA OBRA, NIVELACION, HERRAMIENTA Y MANO DE OBRA.","M3 ","4.0000",0,"CERO PESOS 00/100 M.N.",0,272537]
[952048,"SUMINISTRO Y COLOCACION DE MURO DE PIEDRA BRAZA ASENTADA CON MORTERO EN PROPORCION 1:5 CEM-ARENA DE RIO,INCLUYE: MATERIAL, ACOMODO DE PIEDRA POR PIEDRA UNA CARA, ACARREOS DENTRO Y FUERA DE LA OBRA, NIVELACION PARA RECIBIR CONCRETO,, HERRAMIENTA Y MANO DE OBRA.","M3 ","5.1600",0,"CERO PESOS 00/100 M.N.",0,272538]
["AUD.03(355)","RECUBRIMIENTOS Y ACABADOS                         ",null,null,null,null,{"$f":"TEXT(SUM(G29:G30), \"$ #,##0.00 ;\")","v":"$ 0.00 "}]
[420581,"SUMINISTRO Y COLOCACION DE PERFIL TUBULAR ESTANDARD, DE 2\" X 2\" (CODIGO 2356), MCA. CUPRUM, LINEA PANORAMA O SIMILAR EN  ALUMINIO ANODIZADO COLOR NATURAL, PARA REFUERZO Y/O AJUSTE DE PUERTAS, CUBIERTAS Y/O CANCELERIAS, INCLUYE: ELEMENTOS DE FIJACION, NIVELACION, ALINEACION, CORTES, AJUSTES, DESPERDICIOS, MATERIALES MENORES, HERRAMIENTAS, MANO DE OBRA, Y ACARREO DE MATERIALES AL SITIO DE SU UTLIZACION.","ML ","450.0000",0,"CERO PESOS 00/100 M.N.",0,281244]
[905060,"SUMINISTRO E INSTALACION DE PANEL COMPUESTO DE ALUMINIO MARCA (ALUCOBOND) DE 4 MM. CLAVE DE CATALOGO A 2000-D COLOR PLATA DE ACUERDO A CATALOGO DE ESPECIFICACIONES ASENTADO SOBRE PERFILES DE ALUMINIO DE 2\", INCLUYE: HABILITACION DE PANELES EXTRUIDOS DE ALUMINIO, DONDE LO REQUIERA, SELLADOS DE JUNTAS, TORNILLERIA, LIMPIEZA, HERRAMIENTAS, ACARREOS, ELEVACIONES AL SITIO DE SU COLOCACION, MANO DE OBRA ESPECIALIZADA.","M2 ","250.0000",0,"CERO PESOS 00/100 M.N.",0,272539]
["AUD.04(372)","PISOS                                             ",null,null,null,null,{"$f":"TEXT(SUM(G32:G33), \"$ #,##0.00 ;\")","v":"$ 0.00 "}]
[373087,"PISO DE CONCRETO ESTAMPADO CON COLOR DE F¨C=200KG/CM2, DE 10 CM. DE ESPESOR, CON CONCRETO RESISTENCIA NORMAL AGREGADO AL MAXIMO DE 3/4\", HECHO EN OBRA, PREPARACION DE PISO CON COLOR Y ENCDURECEDOR ( A RAZON DE 2.50 KG/M2.) PARA ACABADO PULIDO, DESMOLDALTE 0.122 KG/M2, Y APLICACION DE SELLADOR ACRILICO A RAZON DE 0.232 LTS/M2;  INCLUYE: TRAZO, NIVELACION , AFINE, Y COMPACTACION DEL TERRENO, DESPERDICIOS, ACARREOS, REGLADO, ESTAMPADO CON MOLDE DE POLIURETANO,  LAVADO CON AGUA A PRESION, CIMBRA EN FRONTERAS, COLOR INDICADO EN OBRA POR LA SUPERVISION, DESCIMBRADO, COLADO, CURADO, LIMPIEZA, MANO DE OBRA Y EQUIPO.","M2 ","312.5000",0,"CERO PESOS 00/100 M.N.",0,272540]
[373765,"FORJADO DE NARIZ DE REMATE EN PISO DE  BANQUETAS, CON 5.0  X  10.0 CM. DE SECCION, INCLUYE SOLO: CIMBRA, DESCIMBRA, GOTERO FORJADO, DESPERDICIOS Y ACARREO DE MATERIALES AL SITIO DE SU UTILIZACION (NO INCLUYE CONCRETO).","ML ","78.3000",0,"CERO PESOS 00/100 M.N.",0,272541]
["AUD.05(382)","ELEMENTOS COMPLEMENTARIOS DE ALBAÑILERIA          ",null,null,null,null,{"$f":"TEXT(SUM(G35:G36), \"$ #,##0.00 ;\")","v":"$ 0.00 "}]
[385312,"SUMINISTRO Y COLOCACION DE BARRA DE APOYO PARA DISCAPACITADOS DE ACERO INOXIDABLE PARA W.C. MOD. 7386-0 (1045) DE SANILOCK O SIMILAR CON CHAPETON, FIJADO A MURO. INCLUYE: ACCESORIOS Y MATERIALES DE FIJACION.","PZA","2.0000",0,"CERO PESOS 00/100 M.N.",0,272542]
[918427,"INSTALACION DE BUTACAS, INCLUYE: MATERIALES NECESARIOS, ANCLAJE A PISO, MANO DE OBRA ESPECIALIZADA, HERRAMIENTA MENOR, EQUIPO Y ACARREOS.","PZA","300.0000",0,"CERO PESOS 00/100 M.N.",0,272543]
["AUD.06(410)","CANCELERIA, HERRERIA, ALUMINIO, VIDRIOS Y CHAPAS  ",null,null,null,null,{"$f":"TEXT(SUM(G38:G38), \"$ #,##0.00 ;\")","v":"$ 0.00 "}]
[426525,"SUMINISTRO Y COLOCACION DE ESPEJO DE CRISTAL FLOTADO DE 6 MM. CON MARCO DE ALUMINIO ANODIZADO NATURAL DE 1 1/2\", INCLUYE: MATERIALES MENORES Y DE CONSUMO,  ELEMENTOS DE FIJACION, MARCO DE ALUMINIO, VINILO, PIJAS, HERRAMIENTAS, LIMPIEZA Y MANO DE OBRA ESPECIALIZADA.","M2 ","2.1600",0,"CERO PESOS 00/100 M.N.",0,272544]
["AUD.07(510)","INSTALACION ELECTRICA EN EDIFICIO                 ",null,null,null,null,{"$f":"TEXT(SUM(G40:G45), \"$ #,##0.00 ;\")","v":"$ 0.00 "}]
[880419,"SUMINISTRO Y COLOCACION DE CABLE DE ALUMINIO DESNUDO TIPO \"AAC\" CALIBRE 3/0 AWG. MARCA ONDUMEX O CONDUCTORES MONTERREY, INCLUYE: FLETE, CONEXIONES, MATERIALES NECESARIOS PARA SU INSTALACION, CONECTORES, HERRAMIENTAS, EQUIPO DE SEGURIDAD, DESPERDICIOS, LIMPIEZA Y MANO DE OBRA, A CUALQUIER NIVEL.","ML ","220.0000",0,"CERO PESOS 00/100 M.N.",0,272545]
[880453,"SUMINISTRO Y COLOCACION DE CABLE DE ALUMINIO FORRADO SEMIAISLADO TIPO \"ACSR\" PARA 15 KV CALIBRE 3/0 AWG. MCA CONDUMEX O SIMILAR INCLUYE: FLETE, ELEVACION, MATERIALES NECESARIOS PARA SU INSTALACION, HERRAMIENTAS, EQUIPO DE SEGURIDAD, DESPERDICIOS, CATENARIA Y MANO DE OBRA, A CUALQUIER NIVEL. ( TODOS LOS MATERIALES DEBERAN CONTAR CON PROTOCOLO DE PRUEBAS DE LAPEM).","ML ","45.0000",0,"CERO PESOS 00/100 M.N.",0,272546]
[915056,"SUMINISTRO Y COLOCACION DE SISTEMA DE TIERRAS TIPO V, CON ALTA PROTECCION CATODICA Y TRATAMIENTO QUIMICO CATALOGO TPE-01, MARCA PARARRAYOS ESPECIALES, INCLUYE: EXCAVACIONES, RELLENOS COMPACTADOS, LIMPIEZAS, MATERIALES HIGROSCOPICOS, MATERIAL DE FIJACION, SOPORTERIAS Y MANO DE OBRA.","PZA","3.0000",0,"CERO PESOS 00/100 M.N.",0,272547]
[972063,"SUMINISTRO E INSTALACION DE SISTEMAS DE FIJACIÓN FORMADO POR TAQUETE + PIJA 1/4\" X 2\" JGO, ABRAZADERAS DE ALUMINIO TIPO OMEGA PARA CAL. 3/0, INCLUYE MATERIALES MENORES, HERRAMIENTAS Y MANO DE OBRA.","PZA","265.0000",0,"CERO PESOS 00/100 M.N.",0,272548]
[972064,"SUMINISTRO E INSTALACION DE CONECTORES A TOPE CABLE-CABLE PARA CAL.3/0 MCA. BURNDY O DELTA.","PZA","3.0000",0,"CERO PESOS 00/100 M.N.",0,272549]
[972239,"SUMINISTRO E INSTALACION DE PUNTA DE PARARRAYOS REACTIVO PAT. 150885 MARCA PARARRAYOS ESPECIALES QUE INCLUYE BASE Y TORNILLERÌA EN ACERO INOXIDABLE.","PZA","6.0000",0,"CERO PESOS 00/100 M.N.",0,272550]
["02","RED ELECTRICA",null,null,null,null,{"$f":"TEXT((G47), \"$ #,##0.00 ;\")","v":"$ 0.00 "}]
["02.01(511)","INSTALACION ELECTRICA EN OBRA EXTERIOR            ",null,null,null,null,{"$f":"TEXT(SUM(G48:G48), \"$ #,##0.00 ;\")","v":"$ 0.00 "}]
[977059,"SUMINISTRO E INSTALACION DE KIT PARA ALUMBRADO PUBLICO  SOLAR MCA. LED MEXICO MODELO IMPERIO  CATALOGO CUJG-KIT-CONO E 108 DE 30 WATTS, INCLUYE: POSTE METALICO CONICO CIRCULAR DE 6 M, 2 PANELES SOLARES, 1 LAMPARA CONO E 108 DE 30 WATTS, 1 GABINETE/SOPORTE/BATERIA, 1 BATERIA TITANIO DE LITIO, 1 CONTROLADOR DE CARGA, 1 BRAZO SOPORTE Y   ACCESORIOS DE CONEXION, 1 ANCLA DE CONCRETO PIRAMIDAL DE 1.20X0.80X0.40 M, MATERIALES, MANO DE OBRA, HERRAMIENTA Y EQUIPO","PZA","2.0000",0,"CERO PESOS 00/100 M.N.",0,272551]
[null,"RESUMEN DE PARTIDAS"]
["MSUP-CON-05778","CONTINUACIÓN DE LA CONSTRUCCIÓN DE AUDITORIO (ACABADOS, CRISTALES E INSTALACIONES ELÉCTRICAS) EN LA ESCUELA PREPARATORIA NO. 17 CCT 14UBH0192M, UBICADA EN LA LOCALIDAD LAS PINTAS, MUNICIPIO DE EL SALTO, JALISCO. (TERCERA ETAPA).",null,null,null,null,{"$f":"G17","v":"$ 0.00 "}]
["AUD","AUDITORIO",null,null,null,null,{"$f":"G18","v":"$ 0.00 "}]
["AUD.01(150)","TRABAJOS PRELIMINARES                             ",null,null,null,null,{"$f":"G19","v":"$ 0.00 "}]
["AUD.02(160)","CIMENTACION                                       ",null,null,null,null,{"$f":"G24","v":"$ 0.00 "}]
["AUD.03(355)","RECUBRIMIENTOS Y ACABADOS                         ",null,null,null,null,{"$f":"G28","v":"$ 0.00 "}]
["AUD.04(372)","PISOS                                             ",null,null,null,null,{"$f":"G31","v":"$ 0.00 "}]
["AUD.05(382)","ELEMENTOS COMPLEMENTARIOS DE ALBAÑILERIA          ",null,null,null,null,{"$f":"G34","v":"$ 0.00 "}]
["AUD.06(410)","CANCELERIA, HERRERIA, ALUMINIO, VIDRIOS Y CHAPAS  ",null,null,null,null,{"$f":"G37","v":"$ 0.00 "}]
["AUD.07(510)","INSTALACION ELECTRICA EN EDIFICIO                 ",null,null,null,null,{"$f":"G39","v":"$ 0.00 "}]
["02","RED ELECTRICA",null,null,null,null,{"$f":"G46","v":"$ 0.00 "}]
["02.01(511)","INSTALACION ELECTRICA EN OBRA EXTERIOR            ",null,null,null,null,{"$f":"G47","v":"$ 0.00 "}]
[]
["IMPORTE CON LETRA (IVA INCLUIDO)",null,null,null,null,"SUBTOTAL M.N.",{"$f":"TEXT(G17,  \"$ #,##0.00 ;\")","v":"$ 0.00 "}]
[{"$f":"UPPER(CONVERTIRNUM(ROUND( G17 * 1.16, 2)))","v":"CERO PESOS 00/100 M.N."},null,null,null,null,"IVA M.N.",{"$f":"TEXT(ROUND( G17 * 0.16, 2),  \"$ #,##0.00 ;\")","v":"$ 0.00 "}]
[null,null,null,null,null,"TOTAL M.N.",{"$f":"TEXT(ROUND( G17 * 1.16, 2),  \"$ #,##0.00 ;\")","v":"$ 0.00 "}]